fUSD/lending_fUSD_20260605
["ID","MTS","AMOUNT","RATE_DAILY","PERIOD"]
[424185345,1780632839000,177.41,0.00012966,7]
[424185346,1780632840000,177.41,0.00012966,7]
[424185348,1780632841000,177.41,0.00012966,7]
[424185347,1780632841000,177.41,0.00012966,7]
[424185350,1780632842000,177.41,0.00012992,7]
[424185349,1780632842000,177.41,0.00012966,7]
[424185352,1780632843000,177.41,0.00012992,7]
[424185351,1780632843000,2200.0,0.000118,4]
[424185353,1780632844000,177.41,0.00012992,7]
[424185354,1780632845000,177.41,0.00012992,7]
[424185356,1780632845000,152.0,0.0001075,30]
[424185355,1780632845000,4500.0,0.000119,4]
[424185357,1780632846000,152.0,0.0001075,30]
[424185358,1780632847000,152.0,0.0001075,30]
[424185360,1780632848000,152.0,0.00010769,30]
[424185359,1780632848000,152.0,0.0001075,30]
[424185361,1780632849000,152.0,0.00010769,30]
[424185363,1780632850000,152.0,0.00010789,30]
[424185362,1780632850000,152.0,0.00010769,30]
[424185364,1780632851000,152.0,0.00029857,120]
[424185365,1780632852000,152.0,0.00029857,120]
[424185366,1780632852000,152.0,0.00029857,120]
[424185368,1780632866000,152.0,0.00029875,120]
[424185367,1780632866000,-258.51291822,0.00011919,2]
[424185371,1780632867000,150.0,0.00012161,7]
[424185370,1780632867000,152.0,0.00029893,120]
[424185369,1780632867000,152.0,0.00029875,120]
[424185374,1780632868000,1335.77447138,0.00013,3]
[424185373,1780632868000,150.0,0.00012769,7]
[424185372,1780632868000,150.0,0.00012404,7]
[424185376,1780632904000,1100.0,0.000118,4]
[424185380,1780632906000,2300.0,0.000119,4]
[424185381,1780632920000,-152.0,0.00013016,7]
[424185386,1780632921000,3576.70890904,0.00010769,7]
[424185385,1780632921000,392.8026363,0.00011631,7]
[424185384,1780632921000,261.8684242,0.00010984,7]
[424185383,1780632921000,152.24153477,0.00012769,7]
[424185382,1780632921000,150.0,0.00012769,7]
[424185387,1780632922000,3576.70890904,0.00010984,7]
[424185388,1780632923000,3576.70890904,0.00011307,7]
[424185389,1780632924000,3576.70890904,0.00011631,7]
[424185390,1780632925000,3576.70890906,0.00012061,7]
[424185391,1780632926000,152.0,0.00012769,7]
[424185392,1780632927000,152.0,0.00012769,7]
[424185394,1780632928000,152.0,0.00012769,7]
[424185393,1780632928000,152.0,0.00012769,7]
[424185395,1780632929000,152.0,0.00012769,7]
[424185396,1780632930000,152.0,0.00012769,7]
[424185398,1780632931000,152.0,0.00012769,7]
[424185397,1780632931000,152.0,0.00012769,7]
[424185399,1780632932000,152.0,0.00012773,7]
[424185400,1780632932000,152.0,0.00012773,7]
[424185401,1780632933000,152.0,0.00012773,7]
[424185402,1780632934000,152.0,0.00012773,7]
[424185404,1780632935000,152.0,0.00012773,7]
[424185403,1780632935000,152.0,0.00012773,7]
[424185405,1780632936000,152.0,0.00012777,7]
[424185407,1780632937000,152.0,0.00012777,7]
[424185406,1780632937000,152.0,0.00012777,7]
[424185408,1780632938000,152.0,0.00010789,30]
[424185409,1780632939000,152.0,0.00010789,30]
[424185410,1780632940000,152.0,0.00010789,30]
[424185411,1780632940000,152.0,0.00010795,30]
[424185412,1780632941000,152.0,0.00010795,30]
[424185414,1780632942000,152.0,0.00029893,120]
[424185413,1780632942000,152.0,0.00010802,30]
[424185415,1780632943000,152.0,0.00029893,120]
[424185416,1780632944000,152.0,0.00029905,120]
[424185417,1780632945000,152.0,0.00029917,120]
[424185419,1780632974000,-1200.0,0.00012069,2]
[424185420,1780632974000,-300.0,0.00012069,2]
[424185421,1780632974000,-3500.0,0.0001207,2]
[424185422,1780632974000,152.0,0.00012769,7]
[424185426,1780632974000,152.0,0.00012777,7]
[424185423,1780632974000,152.0,0.00012769,7]
[424185418,1780632974000,-164.933,0.00011919,2]
[424185427,1780632974000,152.0,0.00010789,30]
[424185428,1780632974000,152.0,0.00010789,30]
[424185424,1780632974000,152.0,0.00012773,7]
[424185425,1780632974000,152.0,0.00012773,7]
[424185429,1780632975000,152.0,0.00029905,120]
[424185430,1780632975000,152.0,0.00029905,120]
[424185431,1780632978000,150.0,0.00012769,7]
[424185432,1780632979000,215.41524244,0.00012769,7]
[424185433,1780633027000,-500.0,0.00011943,2]
[424185434,1780633027000,-1278.31,0.00011943,2]
[424185435,1780633027000,-1788.84,0.00011997,2]
[424185440,1780633027000,-85.44764823,0.00012061,2]
[424185436,1780633027000,-347.40235177,0.00012061,2]
[424185438,1780633027000,-500.0,0.00012061,2]
[424185439,1780633027000,-500.0,0.00012061,2]
[424185437,1780633027000,-500.0,0.00012061,2]
[424185441,1780633028000,-414.55235177,0.00012061,2]
[424185443,1780633028000,-500.0,0.00012061,2]
[424185442,1780633028000,-500.0,0.00012061,2]
[424185445,1780633028000,-500.0,0.00012061,2]
[424185444,1780633028000,-500.0,0.00012061,2]
[424185448,1780633028000,-500.0,0.00012061,2]
[424185446,1780633028000,-500.0,0.00012061,2]
[424185449,1780633028000,-500.0,0.00012061,2]
[424185451,1780633028000,-85.44764823,0.00012061,2]
[424185450,1780633028000,-500.0,0.00012061,2]
[424185447,1780633028000,-500.0,0.00012061,2]
[424185460,1780633047000,-500.0,0.00012061,2]
[424185452,1780633047000,-414.55235177,0.00012061,2]
[424185453,1780633047000,-500.0,0.00012061,2]
[424185454,1780633047000,-500.0,0.00012061,2]
[424185456,1780633047000,-500.0,0.00012061,2]
[424185455,1780633047000,-500.0,0.00012061,2]
[424185457,1780633047000,-500.0,0.00012061,2]
[424185458,1780633047000,-500.0,0.00012061,2]
[424185459,1780633047000,-500.0,0.00012061,2]
[424185461,1780633047000,-500.0,0.00012061,2]
[424185465,1780633047000,-500.0,0.00012061,2]
[424185463,1780633047000,-500.0,0.00012061,2]
[424185464,1780633047000,-500.0,0.00012061,2]
[424185466,1780633047000,-500.0,0.00012061,2]
[424185467,1780633047000,-500.0,0.00012061,2]
[424185469,1780633047000,-500.0,0.00012061,2]
[424185468,1780633047000,-500.0,0.00012061,2]
[424185472,1780633047000,-500.0,0.00012061,2]
[424185471,1780633047000,-500.0,0.00012061,2]
[424185462,1780633047000,-500.0,0.00012061,2]
[424185470,1780633047000,-500.0,0.00012061,2]
[424185476,1780633052000,-1068.55127649,0.0001207,2]
[424185475,1780633052000,-214.52844323,0.00012069,2]
[424185474,1780633052000,-1216.92028028,0.00012062,2]
[424185473,1780633052000,-2500.0,0.00012062,2]
[424185477,1780633053000,-5000.0,0.0001207,2]
[424185478,1780633054000,-5000.0,0.0001207,2]
[424185479,1780633054000,-5000.0,0.0001207,2]
[424185480,1780633056000,-5000.0,0.0001207,2]
[424185481,1780633057000,-5000.0,0.0001207,2]
[424185484,1780633100000,1193.946454,0.0003,120]
[424185482,1780633100000,-198.48085873,0.0001197,2]
[424185483,1780633100000,1193.946454,0.0003,120]
[424185485,1780633101000,155.15055898,0.00010984,7]
[424185488,1780633102000,824.04784092,0.00010984,7]
[424185487,1780633102000,232.72583848,0.00011631,7]
[424185486,1780633102000,824.04784092,0.00010769,7]
[424185489,1780633103000,824.04784092,0.00011307,7]
[424185490,1780633104000,824.04784092,0.00011631,7]
[424185491,1780633105000,230.93373633,0.00012061,7]
[424185492,1780633105000,593.11410462,0.00012061,7]
[424185493,1780633122000,200.0,0.00012153,7]
[424185494,1780633123000,253.07,0.00012153,7]
[424185496,1780633153000,-734.0769962,0.00012055,2]
[424185497,1780633153000,161.47684865,0.00012098,3]
[424185498,1780633167000,-123.8030038,0.00012055,2]
[424185502,1780633170000,-4151.60168182,0.00012062,2]
[424185501,1780633170000,-150.0,0.00012061,2]
[424185499,1780633170000,-198.39831818,0.00012048,2]
[424185500,1780633170000,-500.0,0.00012061,2]
[424185503,1780633171000,-5000.0,0.00012062,2]
[424185504,1780633172000,-5000.0,0.00012062,2]
[424185508,1780633203000,-169.72002117,0.00012061,2]
[424185506,1780633203000,-1200.0,0.0001206,2]
[424185507,1780633203000,-500.0,0.00012061,2]
[424185509,1780633203000,-500.0,0.00012061,2]
[424185515,1780633203000,-130.27997883,0.00012061,2]
[424185511,1780633203000,-500.0,0.00012061,2]
[424185512,1780633203000,-500.0,0.00012061,2]
[424185513,1780633203000,-500.0,0.00012061,2]
[424185514,1780633203000,-500.0,0.00012061,2]
[424185510,1780633203000,-500.0,0.00012061,2]
[424185516,1780633204000,-369.72002117,0.00012061,2]
[424185517,1780633204000,-500.0,0.00012061,2]
[424185519,1780633204000,-475.7396872,0.00012061,2]
[424185518,1780633204000,-500.0,0.00012061,2]
[424185521,1780633204000,-500.0,0.00012061,2]
[424185522,1780633204000,-500.0,0.00012061,2]
[424185523,1780633204000,-500.0,0.00012061,2]
[424185526,1780633204000,-154.54029163,0.00012061,2]
[424185524,1780633204000,-500.0,0.00012061,2]
[424185525,1780633204000,-500.0,0.00012061,2]
[424185520,1780633204000,-500.0,0.00012061,2]
[424185531,1780633205000,-500.0,0.00012061,2]
[424185527,1780633205000,-345.45970837,0.00012061,2]
[424185528,1780633205000,-500.0,0.00012061,2]
[424185529,1780633205000,-500.0,0.00012061,2]
[424185530,1780633205000,-500.0,0.00012061,2]
[424185534,1780633205000,-500.0,0.00012061,2]
[424185535,1780633205000,-500.0,0.00012061,2]
[424185536,1780633205000,-500.0,0.00012061,2]
[424185532,1780633205000,-500.0,0.00012061,2]
[424185533,1780633205000,-500.0,0.00012061,2]
[424185537,1780633205000,-154.54029163,0.00012061,2]
[424185538,1780633207000,-345.45970837,0.00012061,2]
[424185539,1780633207000,-500.0,0.00012061,2]
[424185541,1780633207000,-500.0,0.00012061,2]
[424185543,1780633207000,-500.0,0.00012061,2]
[424185540,1780633207000,-500.0,0.00012061,2]
[424185545,1780633207000,-500.0,0.00012061,2]
[424185546,1780633207000,-500.0,0.00012061,2]
[424185548,1780633207000,-154.54029163,0.00012061,2]
[424185547,1780633207000,-500.0,0.00012061,2]
[424185544,1780633207000,-500.0,0.00012061,2]
[424185542,1780633207000,-500.0,0.00012061,2]
[424185549,1780633221000,-345.45970837,0.00012061,2]
[424185556,1780633304000,292.14647738,0.00030137,120]
[424185559,1780633322000,-163.61,0.00011941,2]
[424185560,1780633322000,-4686.39,0.00011941,2]
[424185558,1780633322000,-150.0,0.00011503,2]
[424185561,1780633323000,-3813.168119,0.00011941,2]
[424185562,1780633323000,-182.13614606,0.00012002,2]
[424185566,1780633324000,-354.69573494,0.0001206,2]
[424185565,1780633324000,-150.0,0.00012059,2]
[424185564,1780633324000,-250.0,0.00012049,2]
[424185563,1780633324000,-250.0,0.0001203,2]
[424185571,1780633383000,192.966662,0.0003,120]
[424185573,1780633393000,-450.33982052,0.00010699,2]
[424185574,1780633393000,-500.0,0.00010699,2]
[424185572,1780633393000,-632.79950698,0.00010699,2]
[424185578,1780633393000,-500.0,0.00010699,2]
[424185575,1780633393000,-500.0,0.00010699,2]
[424185577,1780633393000,-500.0,0.00010699,2]
[424185576,1780633393000,-500.0,0.00010699,2]
[424185579,1780633394000,-500.0,0.00010699,2]
[424185581,1780633394000,-416.8606725,0.00010699,2]
[424185580,1780633394000,-500.0,0.00010699,2]
[424185586,1780633395000,-500.0,0.00010699,2]
[424185583,1780633395000,-500.0,0.00010699,2]
[424185582,1780633395000,-83.1393275,0.00010699,2]
[424185585,1780633395000,-500.0,0.00010699,2]
[424185587,1780633395000,-500.0,0.00010699,2]
[424185584,1780633395000,-404.59457205,0.00010699,2]
[424185590,1780633395000,-500.0,0.00010699,2]
[424185592,1780633395000,-500.0,0.00010699,2]
[424185591,1780633395000,-500.0,0.00010699,2]
[424185588,1780633395000,-500.0,0.00010699,2]
[424185589,1780633395000,-500.0,0.00010699,2]
[424185593,1780633395000,-12.26610045,0.00010699,2]
[424185596,1780633404000,-500.0,0.00010699,2]
[424185595,1780633404000,-500.0,0.00010699,2]
[424185594,1780633404000,-487.73389955,0.00010699,2]
[424185597,1780633404000,-3512.26610045,0.000107,2]
[424185599,1780633405000,-5000.0,0.000107,2]
[424185600,1780633406000,-5000.0,0.000107,2]
[424185601,1780633407000,-5000.0,0.000107,2]
[424185602,1780633408000,-3339.76518032,0.000107,2]
[424185603,1780633409000,1660.23481968,0.00010699,2]
[424185604,1780633426000,181.5,0.00030082,120]
[424185609,1780633436000,-4183.59781968,0.00012062,2]
[424185608,1780633436000,-191.0,0.00012061,2]
[424185607,1780633436000,-211.32,0.00010699,2]
[424185606,1780633436000,-414.08218032,0.00010699,2]
[424185610,1780633438000,-5000.0,0.00012062,2]
[424185612,1780633459000,321.59376265,0.0001206,7]
[424185617,1780633514000,500.0,0.00011769,3]
[424185618,1780633528000,-3726.28,0.00011797,2]
[424185620,1780633528000,-1123.72,0.00012061,2]
[424185619,1780633528000,-150.0,0.00012061,2]
[424185622,1780633534000,-184.0,0.00012061,2]
[424185623,1780633534000,-4739.72,0.00012062,2]
[424185621,1780633534000,-76.28,0.00012061,2]
[424185625,1780633546000,-2484.0931,0.00012062,2]
[424185624,1780633546000,-2515.9069,0.00011962,2]
[424185627,1780633547000,-5000.0,0.00012062,2]
[424185626,1780633547000,-5000.0,0.00012062,2]
[424185628,1780633548000,-5000.0,0.00012062,2]
[424185631,1780633549000,-1172.1405015,0.00012062,2]
[424185630,1780633549000,-3763.6908,0.00012062,2]
[424185629,1780633549000,-64.1686985,0.00012062,2]
[424185632,1780633550000,-5000.0,0.00012062,2]
[424185633,1780633556000,-218.5,0.00011765,2]
[424185634,1780633556000,-4781.5,0.00011962,2]
[424185635,1780633557000,-5000.0,0.00011962,2]
[424185637,1780633587000,-459.53792019,0.00011796,2]
[424185636,1780633587000,-331.46207981,0.00011796,2]
[424185640,1780633633000,2900.0,0.000117,4]
[424185641,1780633635000,5900.0,0.000118,4]
[424185643,1780633638000,8800.0,0.000119,4]
[424185648,1780633684000,1479.899442,0.0003,120]
[424185647,1780633684000,1479.899442,0.0003,120]
[424185646,1780633684000,1479.899442,0.0003,120]
[424185651,1780633703000,152.0,0.00012769,7]
[424185652,1780633704000,152.0,0.00012769,7]
[424185653,1780633704000,152.0,0.00012769,7]
[424185654,1780633705000,152.0,0.00012769,7]
[424185655,1780633706000,152.0,0.00012769,7]
[424185656,1780633706000,152.0,0.00012773,7]
[424185657,1780633707000,152.0,0.00012773,7]
[424185659,1780633708000,152.0,0.00012773,7]
[424185658,1780633708000,152.0,0.00012773,7]
[424185661,1780633710000,152.0,0.00012777,7]
[424185660,1780633710000,152.0,0.00012777,7]
[424185662,1780633711000,152.0,0.00010789,30]
[424185663,1780633711000,152.0,0.00010789,30]
[424185664,1780633712000,152.0,0.00010795,30]
[424185666,1780633713000,152.0,0.00029892,120]
[424185665,1780633713000,152.0,0.00010802,30]
[424185667,1780633714000,152.0,0.00029892,120]
[424185668,1780633715000,152.0,0.00029904,120]
[424185669,1780633735000,152.0,0.00012769,7]
[424185670,1780633736000,152.0,0.00012769,7]
[424185671,1780633737000,152.0,0.00012773,7]
[424185672,1780633737000,152.0,0.00010795,30]
[424185673,1780633738000,152.0,0.00029904,120]
[424185674,1780633754000,-200.0,0.00011346,2]
[424185675,1780633772000,152.0,0.00012773,7]
[424185677,1780633808000,830.0884215,0.00013,3]
[424185676,1780633808000,-200.0,0.00011346,2]
[424185684,1780633831000,-500.0,0.00011616,2]
[424185682,1780633831000,-587.75,0.00011567,2]
[424185685,1780633831000,-500.0,0.00011616,2]
[424185686,1780633831000,-500.0,0.00011616,2]
[424185683,1780633831000,-500.0,0.00011616,2]
[424185681,1780633831000,-1879.14,0.00011394,2]
[424185692,1780633831000,-500.0,0.00011616,2]
[424185687,1780633831000,-500.0,0.00011616,2]
[424185688,1780633831000,-500.0,0.00011616,2]
[424185699,1780633831000,-500.0,0.00011616,2]
[424185691,1780633831000,-500.0,0.00011616,2]
[424185689,1780633831000,-184.40136572,0.00011616,2]
[424185693,1780633831000,-500.0,0.00011616,2]
[424185694,1780633831000,-500.0,0.00011616,2]
[424185696,1780633831000,-500.0,0.00011616,2]
[424185697,1780633831000,-370.51614873,0.00011616,2]
[424185700,1780633831000,-228.3999072,0.00011616,2]
[424185698,1780633831000,-500.0,0.00011616,2]
[424185690,1780633831000,-500.0,0.00011616,2]
[424185708,1780633832000,-142145.06757782,0.00011862,2]
[424185701,1780633832000,-2000.0,0.00011617,2]
[424185707,1780633832000,-1441.54571762,0.000118,2]
[424185704,1780633832000,-150.0,0.00011685,2]
[424185706,1780633832000,-250.0,0.00011789,2]
[424185702,1780633832000,-1879.14,0.00011679,2]
[424185716,1780633832000,-5844.08243987,0.00011862,2]
[424185720,1780633832000,-84223.30685946,0.00011862,2]
[424185722,1780633832000,-2508.4611107,0.00011862,2]
[424185709,1780633832000,-10026.00968406,0.00011862,2]
[424185714,1780633832000,-3008.35536331,0.00011862,2]
[424185711,1780633832000,-37053.64339122,0.00011862,2]
[424185710,1780633832000,-83463.11301819,0.00011862,2]
[424185733,1780633837000,-399.01216625,0.00011862,2]
[424185735,1780633840000,-2121.79693192,0.00011862,2]
[424185792,1780633841000,-4947.1099,0.00012824,2]
[424185790,1780633841000,-500.0,0.00012779,2]
[424185786,1780633841000,-4537.45,0.00012562,2]
[424185793,1780633841000,-1927.85,0.00012893,2]
[424185778,1780633841000,-1879.14,0.00012249,2]
[424185780,1780633841000,-181.5,0.00012329,2]
[424185779,1780633841000,-4873.69520404,0.00012298,2]
[424185791,1780633841000,-250.0,0.00012779,2]
[424185776,1780633841000,-150.0,0.00012161,2]
[424185783,1780633841000,-76150.86639135,0.00012452,2]
[424185784,1780633841000,-36317.11803081,0.00012466,2]
[424185782,1780633841000,-51202.39333921,0.00012343,2]
[424185785,1780633841000,-1879.14,0.00012534,2]
[424185788,1780633841000,-76150.86639135,0.00012758,2]
[424185774,1780633841000,-152.0,0.00012103,2]
[424185789,1780633841000,-36317.11803081,0.0001277,2]
[424185787,1780633841000,-4873.69520404,0.00012731,2]
[424185796,1780633841000,-210.48,0.00012987,2]
[424185795,1780633841000,-150.0,0.00012987,2]
[424185797,1780633841000,-182.07,0.00012987,2]
[424185805,1780633841000,-150.0,0.00013134,7]
[424185806,1780633841000,-4873.69520404,0.00013165,2]
[424185798,1780633841000,-331.81,0.00012987,2]
[424185794,1780633841000,-10626.41,0.00012893,2]
[424185772,1780633841000,-152.0,0.00012099,2]
[424185770,1780633841000,-152.0,0.00012095,2]
[424185773,1780633841000,-182.13614606,0.00012101,2]
[424185736,1780633841000,-16053.33383822,0.00011862,2]
[424185737,1780633841000,-12813.51785801,0.00011862,2]
[424185738,1780633841000,-806.41097753,0.00011862,2]
[424185739,1780633841000,-5608.89825757,0.00011862,2]
[424185746,1780633841000,-4078.26357378,0.00011864,2]
[424185744,1780633841000,-1356.97949146,0.00011864,2]
[424185742,1780633841000,-4873.69520404,0.00011864,2]
[424185740,1780633841000,-2093924.99052587,0.00011862,2]
[424185748,1780633841000,-781.29458524,0.00011952,2]
[424185750,1780633841000,-403.78448924,0.00011961,2]
[424185759,1780633841000,-6817.3354,0.00011962,2]
[424185754,1780633841000,-150.0,0.00011961,2]
[424185752,1780633841000,-617.76909007,0.00011961,2]
[424185764,1780633841000,-1879.14,0.00011964,2]
[424185765,1780633841000,-215.77576141,0.00011996,2]
[424185766,1780633841000,-1341.11645896,0.00012062,2]
[424185768,1780633841000,-2500.0,0.00012062,2]
[424185767,1780633841000,-4000.0,0.00012062,2]
[424185762,1780633841000,-1500000.0,0.00011962,2]
[424185756,1780633841000,-89538.0527,0.00011962,2]
[424185769,1780633841000,-228.50042376,0.00012062,2]
[424185800,1780633841000,-500.0,0.00012987,2]
[424185771,1780633841000,-152.0,0.00012095,2]
[424185775,1780633841000,-76150.8663914,0.00012146,2]
[424185799,1780633841000,-248.7,0.00012987,2]
[424185777,1780633841000,-36317.11803088,0.00012162,2]
[424185802,1780633841000,-76150.86639135,0.00013064,2]
[424185832,1780633841000,-150.0,0.0001362,7]
[424185843,1780633841000,-76150.86639135,0.00013676,2]
[424185836,1780633841000,-150.0,0.0001362,7]
[424185834,1780633841000,-150.0,0.0001362,7]
[424185844,1780633841000,-36317.11803081,0.00013683,2]
[424185835,1780633841000,-150.0,0.0001362,7]
[424185833,1780633841000,-150.0,0.0001362,7]
[424185838,1780633841000,-242.97123824,0.00013624,2]
[424185837,1780633841000,-247.22712278,0.0001362,7]
[424185839,1780633841000,-242.97123824,0.00013639,2]
[424185841,1780633841000,-242.97123824,0.00013654,2]
[424185828,1780633841000,-150.0,0.00013595,2]
[424185840,1780633841000,-150.0,0.00013654,2]
[424185849,1780633841000,-500.0,0.00013698,2]
[424185850,1780633841000,-500.0,0.00013698,2]
[424185847,1780633841000,-500.0,0.00013698,2]
[424185848,1780633841000,-500.0,0.00013698,2]
[424185851,1780633841000,-500.0,0.00013698,2]
[424185845,1780633841000,-242.97123824,0.00013684,2]
[424185852,1780633841000,-500.0,0.00013698,2]
[424185853,1780633841000,-500.0,0.00013698,2]
[424185854,1780633841000,-500.0,0.00013698,2]
[424185801,1780633841000,-1562.37269519,0.00013007,2]
[424185855,1780633841000,-500.0,0.00013698,2]
[424185846,1780633841000,-150.0,0.00013687,2]
[424185827,1780633841000,-242.97123824,0.00013594,2]
[424185842,1780633841000,-242.97123824,0.00013669,2]
[424185826,1780633841000,-150.0,0.00013588,2]
[424185804,1780633841000,-36317.11803081,0.00013075,2]
[424185823,1780633841000,-242.97123824,0.00013548,2]
[424185812,1780633841000,-150.0,0.00013488,2]
[424185813,1780633841000,-150.0,0.00013488,2]
[424185817,1780633841000,-150.0,0.00013488,2]
[424185807,1780633841000,-76150.86639135,0.0001337,2]
[424185816,1780633841000,-150.0,0.00013488,2]
[424185814,1780633841000,-150.0,0.00013488,2]
[424185815,1780633841000,-150.0,0.00013488,2]
[424185808,1780633841000,-36317.11803081,0.00013379,2]
[424185809,1780633841000,-1356.97949145,0.00013382,2]
[424185811,1780633841000,-150.0,0.00013488,2]
[424185803,1780633841000,-2000.0,0.00013069,2]
[424185810,1780633841000,-1091.32066786,0.0001342,2]
[424185818,1780633841000,-150.0,0.00013488,2]
[424185829,1780633841000,-4873.69520404,0.00013599,2]
[424185822,1780633841000,-242.97123824,0.00013533,2]
[424185820,1780633841000,-242.97123824,0.00013503,2]
[424185825,1780633841000,-242.97123824,0.00013578,2]
[424185830,1780633841000,-242.97123824,0.00013609,2]
[424185821,1780633841000,-242.97123824,0.00013518,2]
[424185824,1780633841000,-242.97123824,0.00013563,2]
[424185819,1780633841000,-242.97123824,0.00013488,2]
[424185831,1780633841000,-150.0,0.0001362,7]
[424185885,1780633842000,-2500.0,0.00013699,2]
[424185886,1780633842000,-242.97123824,0.000137,2]
[424185889,1780633842000,-242.97123824,0.0001373,2]
[424185887,1780633842000,-150.0,0.00013702,2]
[424185896,1780633842000,-242.97123824,0.00013806,2]
[424185895,1780633842000,-242.97123824,0.0001379,2]
[424185893,1780633842000,-242.97123824,0.00013775,2]
[424185888,1780633842000,-242.97123824,0.00013715,2]
[424185891,1780633842000,-242.97123824,0.00013745,2]
[424185894,1780633842000,-150.0,0.00013787,2]
[424185890,1780633842000,-150.0,0.00013737,2]
[424185897,1780633842000,-150.0,0.00013809,2]
[424185898,1780633842000,-150.0,0.00013821,2]
[424185910,1780633842000,-765.67067127,0.00013887,2]
[424185912,1780633842000,-242.97123824,0.00013896,2]
[424185913,1780633842000,-242.97123824,0.00013912,2]
[424185911,1780633842000,-150.0,0.00013887,2]
[424185899,1780633842000,-242.97123824,0.00013821,2]
[424185900,1780633842000,-166.66,0.00013836,2]
[424185908,1780633842000,-242.97123824,0.00013881,2]
[424185904,1780633842000,-830.0884215,0.00013865,2]
[424185901,1780633842000,-242.97123824,0.00013836,2]
[424185880,1780633842000,-500.0,0.00013698,2]
[424185892,1780633842000,-242.97123824,0.0001376,2]
[424185876,1780633842000,-500.0,0.00013698,2]
[424185856,1780633842000,-500.0,0.00013698,2]
[424185877,1780633842000,-500.0,0.00013698,2]
[424185902,1780633842000,-242.97123824,0.00013851,2]
[424185857,1780633842000,-500.0,0.00013698,2]
[424185858,1780633842000,-500.0,0.00013698,2]
[424185860,1780633842000,-500.0,0.00013698,2]
[424185867,1780633842000,-500.0,0.00013698,2]
[424185863,1780633842000,-500.0,0.00013698,2]
[424185861,1780633842000,-500.0,0.00013698,2]
[424185862,1780633842000,-500.0,0.00013698,2]
[424185869,1780633842000,-500.0,0.00013698,2]
[424185870,1780633842000,-500.0,0.00013698,2]
[424185864,1780633842000,-512.35682062,0.00013698,2]
[424185878,1780633842000,-500.0,0.00013698,2]
[424185865,1780633842000,-500.0,0.00013698,2]
[424185866,1780633842000,-500.0,0.00013698,2]
[424185868,1780633842000,-500.0,0.00013698,2]
[424185882,1780633842000,-500.0,0.00013698,2]
[424185872,1780633842000,-500.0,0.00013698,2]
[424185871,1780633842000,-500.0,0.00013698,2]
[424185883,1780633842000,-166.66,0.00013699,2]
[424185873,1780633842000,-500.0,0.00013698,2]
[424185881,1780633842000,-181.14,0.00013698,2]
[424185874,1780633842000,-322.28290153,0.00013698,2]
[424185875,1780633842000,-500.0,0.00013698,2]
[424185879,1780633842000,-500.0,0.00013698,2]
[424185859,1780633842000,-188.77839435,0.00013698,2]
[424185906,1780633842000,-242.97123824,0.00013866,2]
[424185884,1780633842000,-200.0,0.00013699,2]
[424185925,1780633842000,-242.97123824,0.00013987,2]
[424185945,1780633842000,-242.97123824,0.00014154,2]
[424185944,1780633842000,-150.0,0.00014154,2]
[424185946,1780633842000,-242.97123824,0.00014169,2]